Cogmind - Beta 13 @@@ ROGUE MODE // 2024.04.08 @ 19:54:44 Player: Eggywontgrow Result: Self-destructed Performance ------------- Evolutions (1) 500 Regions Visited (2) 400 Robots Destroyed (21) 105 Value Destroyed (478) 478 Prototype IDs (0) 0 Alien Tech Used (0) 0 Bonus (0) 0 TOTAL SCORE: 1483 Bonus ------- None Cogmind --------- Core Integrity 277/400 Matter 233/300 Energy 125/125 System Corruption 0% Temperature Cool (0) Movement Walking (260) Ox2 Location -9/Materials Parts ------- > --- POWER (1) -------- Light Ion Engine > --- PROPULSION (3) --- Aluminum Leg > --- UTILITY (3) ------ Large Storage Unit Terrain Scan Processor Improved Targeting Computer > --- WEAPON (2) ------- Small Laser Small Laser > --- INVENTORY (15) --- Ion Engine Light Ion Engine Aluminum Leg Wheel Wheel Heat Sink Medium Storage Unit Medium Armor Plating Hardened Light Armor Plating Hardened Light Armor Plating Small Laser Light Assault Rifle Grenade Launcher Peak State ------------ > --- POWER ------------ Light Ion Engine > --- PROPULSION ------- Improved Treads Aluminum Leg Aluminum Leg > --- UTILITY ---------- Medium Storage Unit Terrain Scan Processor Improved Targeting Computer > --- WEAPON ----------- Light Assault Rifle Light Assault Rifle > --- INVENTORY -------- Light Ion Engine Wheel Wheel Large Storage Unit Medium Armor Plating Small Laser Assault Rifle [Rating: 12] Favorites ----------- Power Light Ion Engine Engine Light Ion Engine Propulsion Aluminum Leg Treads Improved Treads Leg Aluminum Leg Utility Terrain Scan Processor Storage Large Storage Unit Processor Terrain Scan Processor Weapon Light Assault Rifle Energy Gun Small Laser Ballistic Gun Light Assault Rifle Launcher Grenade Launcher Build | -11 -10 -9 ------- Run | Yrd Mat Mat Slots Evolved 2 | . . 2 Power . | . . . Propulsion 1 | . . 1 Utility 1 | . . 1 Weapon . | . . . Parts Attached 26 | 5 7 14 Power 3 | 1 1 1 Engine 3 | 1 1 1 Core . | . . . Reactor . | . . . Propulsion 6 | 2 2 2 Treads 1 | . . 1 Leg 5 | 2 2 1 Wheel . | . . . Hover . | . . . Flight . | . . . Utility 9 | . 3 6 Device . | . . . Storage 7 | . 2 5 Processor 2 | . 1 1 Hackware . | . . . Protection . | . . . Artifact . | . . . Weapon 8 | 2 1 5 Energy Gun 2 | . . 2 Energy Cannon . | . . . Ballistic Gun 5 | 2 1 2 Ballistic Cannon . | . . . Launcher 1 | . . 1 Special Weapon . | . . . Impact Weapon . | . . . Slashing Weapon . | . . . Piercing Weapon . | . . . Special Melee Weapon . | . . . Unidentified Prototypes . | . . . Parts Lost 5 | . . 5 Power 1 | . . 1 Propulsion 2 | . . 2 Utility . | . . . Weapon 2 | . . 2 Highest Loss Streak 4 | . . 4 To Critical Strikes 1 | . . 1 Average Slot Usage (%) 86 | . 83 89 Engine 11 | . 13 11 Leg 25 | . 27 24 Storage 9 | . 8 11 Processor 15 | . 5 20 Energy Gun 3 | . . 5 Ballistic Gun 20 | . 26 15 Naked Turns . | . . . Heaviest Build 26 | 6 16 26 Greatest Support 30 | 20 20 30 Greatest Overweight (x) 2 | . 1 2 Average Overweight (x) . | . . . Largest Inventory Capacity 15 | 5 10 15 Average Capacity 10 | 5 7 13 Most Carried 13 | 4 8 13 Average Carried 7 | 2 5 9 Final Capacity 15 | 5 10 15 Final Carried 13 | 3 7 13 Class Distribution -------------------- 57% | Scavenger-Mutant 42% | Mutant Dominant Class ---------------- Mutant | -10/Materials Scavenger-Mutant | -9/Materials Resources | -11 -10 -9 ----------- Run | Yrd Mat Mat Matter Collected 616 | 274 90 252 Remotely . | . . . Salvage Created 637 | 57 185 395 Parts 45 | . 12 33 Haulers Intercepted . | . . . Recyclers Shooed 5 | . . 5 Parts Field Recycled . | . . . Retrieved Matter . | . . . Parts Self-Destructed . | . . . Prevented . | . . . Kills | -11 -10 -9 ------- Run | Yrd Mat Mat Combat Hostiles Destroyed 15 | 1 4 10 Guns 14 | 1 4 9 AOE 1 | . . 1 Classes Destroyed 8 | 2 3 3 Worker 2 | 1 . 1 Builder 1 | . 1 . Recycler 1 | . 1 . Operator 1 | . . 1 Watcher 1 | . . 1 Swarmer 5 | . 3 2 Grunt 7 | 1 1 5 Sentry 3 | . . 3 Best Kill Streak 5 | 2 3 5 Combat Bots Only 4 | 1 2 4 Max Kills in Single Turn 2 | 1 1 2 Gunslinging . | . . . Exploded 1 | . . 1 Melee . | . . . Uniques/NPCs Destroyed . | . . . Combat | -11 -10 -9 -------- Run | Yrd Mat Mat Hostile Shots Fired 101 | 5 34 62 Missed 30 | 1 8 21 Damage Taken 748 | 44 239 465 Core 170 | . 47 123 Absorbed by Shields . | . . . Core Remaining (%) 90 | 100 81 . Volleys Fired 75 | 6 25 44 Largest 2 | 2 2 2 Hottest 80 | 40 40 80 Shots Fired 147 | 12 50 85 Gun 145 | 12 50 83 Cannon . | . . . Launcher 2 | . . 2 Special . | . . . Kinetic 137 | 12 50 75 Thermal 8 | . . 8 Explosive 2 | . . 2 Electromagnetic . | . . . Robot Hit Streak 12 | 4 5 12 Robot Miss Streak 4 | 2 4 4 Penetration Max . | . . . Secondary Targets . | . . . Shots Hit Robots 87 | 8 24 55 Core Hits 40 | 4 7 29 Critical Kills . | . . . Critical Parts Destroyed . | . . . Critical Strikes . | . . . Melee Attacks . | . . . Impact . | . . . Slashing . | . . . Piercing . | . . . Sneak Attacks . | . . . Combat Hostiles . | . . . Follow-up Attacks . | . . . Damage Inflicted 1047 | 82 273 692 Guns 883 | 82 273 528 Cannons . | . . . Explosions 164 | . . 164 Melee . | . . . Ramming . | . . . Kinetic 804 | 82 273 449 Thermal 79 | . . 79 Explosive 164 | . . 164 Electromagnetic . | . . . Impact . | . . . Slashing . | . . . Piercing . | . . . Highest Corruption . | . . . Average Corruption . | . . . Corruption Purged . | . . . Corruption Blocked . | . . . Overload Shots . | . . . Overflow Damage . | . . . Projectiles . | . . . Explosions . | . . . Melee . | . . . Knockbacks . | . . . Impact . | . . . Kinetic . | . . . Secondary . | . . . Self-Inflicted Damage 8 | . . 8 Shots 1 | . . 1 Rammed . | . . . Targets Rammed 1 | . . 1 Kicked 1 | . . 1 Crushed . | . . . Highest Temperature 45 | 6 6 45 Average Temperature 11 | 6 6 14 Received Heat Transfer 192 | 24 54 114 Siege Activations . | . . . Robots Corrupted . | . . . Combat Hostiles . | . . . Parts Fried . | . . . Impact Corruptions . | . . . Robots Melted . | . . . Combat Hostiles . | . . . Parts Melted 1 | . . 1 Heat Transferred 175 | . . 175 Parts Sabotaged . | . . . Parts Stolen . | . . . Parts Stripped . | . . . Power Chain Reactions . | . . . Alert | -11 -10 -9 ------- Run | Yrd Mat Mat Peak Influence 371 | 25 126 371 Initial 52 | . 16 52 Average 134 | 3 96 193 Maximum Alert Level 1 | . . 1 Low Security (%) 77 | 100 100 56 Level 1 22 | . . 43 Level 2 . | . . . Level 3 . | . . . Level 4 . | . . . Level 5 . | . . . High Security . | . . . Max Security . | . . . Squads Dispatched 3 | . 1 2 Investigation . | . . . Extermination . | . . . Reinforcement 3 | . 1 2 Assault . | . . . Garrison . | . . . Intercept . | . . . Searches Triggered . | . . . Construction Impeded . | . . . Haulers Reinforced . | . . . Active Scanning Responses . | . . . Cargo Convoy Interrupts . | . . . Stealth | -11 -10 -9 --------- Run | Yrd Mat Mat Distress Signals . | . . . Communications Jammed . | . . . Distress Signals . | . . . Times Spotted 26 | 1 9 16 Peak Tracking Total 5 | 1 3 5 Tactical Retreats . | . . . Traps | -11 -10 -9 ------- Run | Yrd Mat Mat Traps Triggered 2 | . 2 . Indirectly . | . . . Trap Hack Attempts . | . . . Triggered . | . . . Disarmed . | . . . Reprogrammed . | . . . Reused . | . . . Traps Extracted . | . . . Installed . | . . . Triggered . | . . . Machines | -11 -10 -9 ---------- Run | Yrd Mat Mat Machines Disabled 1 | . . 1 Max in Single Turn 1 | . . 1 Machines Repaired . | . . . Machines Dismantled . | . . . Machines Sabotaged . | . . . Overloaded Fab Kills . | . . . Hacking | -11 -10 -9 --------- Run | Yrd Mat Mat Machines Accessed . | . . . Terminals . | . . . Fabricators . | . . . Repair Stations . | . . . Recycling Units . | . . . Scanalyzers . | . . . Garrison Access . | . . . Total Hacks . | . . . Successful . | . . . Failed . | . . . Catastrophic . | . . . Database Lockouts . | . . . Manual . | . . . Terminals . | . . . Fabricators . | . . . Repair Stations . | . . . Recycling Units . | . . . Scanalyzers . | . . . Garrison Access . | . . . Terminal Hacks . | . . . Fabricator Hacks . | . . . Repair Station Hacks . | . . . Recycling Unit Hacks . | . . . Scanalyzer . | . . . Garrison Access Hacks . | . . . Unauthorized Hacks . | . . . Terminals . | . . . Fabricators . | . . . Repair Stations . | . . . Recycling Units . | . . . Scanalyzers . | . . . Garrison Access . | . . . Data Cores Recovered . | . . . Used . | . . . Hacking Detections . | . . . Full Trace Events . | . . . Feedback Events . | . . . Feedback Blocked . | . . . Robot Schematics Acquired . | . . . Robots Built . | . . . Authchips . | . . . Time . | . . . Total Robot Build Rating . | . . . Part Schematics Acquired . | . . . Parts Built . | . . . Authchips . | . . . Time . | . . . Total Part Build Rating . | . . . Parts Repaired . | . . . Time . | . . . Parts Recycled . | . . . Recycled Matter . | . . . Retrieved Matter . | . . . Retrieved Components . | . . . Parts Scanalyzed . | . . . Part Schematics Acquired . | . . . Parts Damaged . | . . . Bothacking | -11 -10 -9 ------------ Run | Yrd Mat Mat Used RIF Installer . | . . . Robots Hacked . | . . . Non-combat . | . . . Combat . | . . . Robot Hacks Applied . | . . . Relay Couplers Released . | . . . Fabnet Peak Effective % . | . . . Robots Rewired . | . . . Allies Hacked . | . . . Hacks Repelled . | . . . Allies | -11 -10 -9 -------- Run | Yrd Mat Mat Total Allies . | . . . Largest Group . | . . . Highest-Rated Group . | . . . Highest-Rated Ally . | . . . Total Orders . | . . . Ally Attacks . | . . . Total Damage . | . . . Kills . | . . . Allies Corrupted . | . . . Allies Melted . | . . . Intel | -11 -10 -9 ------- Run | Yrd Mat Mat Robot Analysis Total . | . . . Derelict Logs Recovered . | . . . Drone Launches . | . . . Drone Recoveries . | . . . Exploration | -11 -10 -9 ------------- Run | Yrd Mat Mat Turns Passed 766 | 105 261 400 Spaces Moved 376 | 76 141 159 Core 22 | 22 . . Treads . | . . . Legs 354 | 54 141 159 Wheels . | . . . Hover . | . . . Flight . | . . . Fastest Speed 50 | 50 120 120 Average Speed 128 | 99 120 149 Slowest Speed 260 | 120 190 260 Overloaded Moves . | . . . Propulsion Burnouts . | . . . Robots Hopped . | . . . Cave-ins Triggered . | . . . Exploration Rate (%) 18 | 8 31 16 Regions Visited 2 Branch Regions . Pre-discovered Areas . | . . . Known Exits Taken . | . . . Unknown Exits Taken 2 | 1 1 . Scrap Searched . | . . . Spaces Dug . | . . . Terrain Destroyed 10 | . . 10 Melee . | . . . Projectile . | . . . AOE 10 | . . 10 Terrain Rammed . | . . . Walls Destroyed . | . . . Machines Disabled . | . . . Actions | -11 -10 -9 --------- Run | Yrd Mat Mat Total 523 | 94 186 243 Wait 11 | . 2 9 Move 374 | 75 140 159 Hop . | . . . Pick Up 33 | 8 11 14 Fast Attach . | . . . Attach 18 | 5 6 7 Detach . | . . . Swap 8 | . 1 7 Drop 3 | . 1 2 Fire 75 | 6 25 44 Melee . | . . . Ram . | . . . Kick 1 | . . 1 Crush . | . . . Escape Stasis . | . . . Rewire . | . . . Trap . | . . . Miscellaneous . | . . . Route ------- -11/Scrapyard -10/Materials -9/Materials History --------- Turn | Location | Event 2 | -11/Scrapyard | Met Revision 17 74 | -11/Scrapyard | Discovered new exit (range 8) 106 | -11/Scrapyard | Entered Materials 329 | -10/Materials | Build established: Mutant 337 | -10/Materials | Discovered new exit (range 16) 367 | -10/Materials | Entered another Materials area 367 | -9/Materials | Evolved 2 slots: Propulsion x1, Utility x1 641 | -9/Materials | Build established: Scavenger-Mutant 707 | -9/Materials | Lost 4 parts (2n2w) 767 | -9/Materials | Self-destructed Last Messages --------------- 00674_ R-06 Scavenger collects Lgt. Assault Rifle. 00676_ Aluminum Leg destroyed. 00677_ Heat Sink melted. 00677_ Y-45 Defender destroyed. 00679_ R-06 Scavenger collects Wheel. 00680_ U-05 Engineer lays Concrete. 00681_ U-05 Engineer builds a Wall. 00685_ U-05 Engineer lays Concrete. 00687_ U-05 Engineer builds a Wall. 00688_ U-05 Engineer lays Concrete. 00688_ Acquired Rocket Launcher. 00689_ Dropped Rocket Launcher. 00691_ U-05 Engineer lays Concrete. 00698_ Acquired Hrd. Light Armor Plating. 00698_ U-05 Engineer lays Concrete. 00701_ Acquired 31 matter. 00701_ U-05 Engineer lays Concrete. 00719_ Acquired 14 matter. 00743_ Kicked R-06 Scavenger out of the way. 00764_ Acquired Hrd. Light Armor Plating. Map ----- +----------------------------------------------------+ | ?????????????????????????????????????????????????? | | ?????????????????????????????????????????????????? | | ?????????????????????????????????????????????????? | | ?????????????????????????????????????????????????? | | ?????????????????????????????????????????????????? | | ?????????????????????????????????????????????????? | | ?????????????????????????????????????????????????? | | ?????????????????????????????????????????????????? | | ?????????????????????????????????????????????????? | | ?????????????????????????????????????????????????? | | ?????????????????????????????????????????????????? | | ?????????????????????????????????????????????????? | | ?????????????????????????????????????????????????? | | ?????????????????????????????????#???????????????? | | ???????????????????????????????? #???????????????? | | ??????????????????????????????? #???????????????? | | ??????????????????????????????? #???????????????? | | ?????????????????????????????? #???????????????? | | ?????????????????????????????# ##??????????????? | | ??????????????????########### #??????????????? | | ??????????????????# * ????????????????? | | ???????????????#### ?????????????????? | | ???????????????? ???????????????????? | | ??????????????????# #????????????????????? | | ??????????????????# [! #????????????????????? | | ??????????????????# @ #############????????? | | ??????????????????+ ???????? | | ??????????????????# ???????? | | ??????????????????# ???????? | | ??????????????????# ???????? | | ??????????????????# #######+#####????????? | | ??????????????????####### ###????????????????????? | | ????????????????????????# #??????????????????????? | | ????????????????????????#u#??????????????????????? | | ????????????????????????# #??????????????????????? | | ?????#######????????????# #??????????????????????? | | ?????# ?????????### ###????????????????????? | | ?????# ########## #????????????????????? | | ?????# #????????????????????? | | ?????# #????????????????????? | | ?????# ![ #????###########?????? | | ?????# ##+####### #????# #?????? | | ?????# ??# ==*] ############ #?????? | | ?????####????# ![=! *[ #?????? | | ?????????????# %= ######+# #?????? | | ?????????????# # """"" #?????? | | ?????????????# # ""T"" #???### | | ?????????????# = # #! #???# | | ?????????????# """ # # ##### | | ?????????????# """ # + | +----------------------------------------------------+ Best States ------------- Heat Dissipation 28 Energy Generation 10 Energy Capacity 125 Matter Stores 300 Matter Capacity 300 Sight Range 16 Terrain Scan Density 85 Evasion (%) 55 Targeting Accuracy 6 Item Schematics ----------------- None Robot Schematics ------------------ None Fabricated ------------ Nothing Alien Tech Used ----------------- None Achievements -------------- Hey, That's Mine! Challenges ------------ None Game ------ Seed LightpackPointyBoregun Manual? 0 Play Time 00:15:04 Cumulative 3.4 hours Start 2024.04.07 @ 19:00:44 End 2024.04.08 @ 19:54:44 Sessions 3 Manual Loads 0 Difficulty Rogue Special Mode None Game No. 3 Rogue 3 Adventurer 0 Explorer 0 Win Type - Total 0 Types 0/0/0/0/0/0/0/0/0 Lore% 0 Gallery% 6 Achievement% 6 Wizard Run 0 Options --------- Layout 0 ASCII 0 Keyboard 0 Movement Mouse Keybinds 0 Fullscreen 2 Font 24/Smallcaps Map View 76x50 Zoom Use 0% Tactical HUD 1 Map Filters NONE Filters NONE Steam 1 RUN: 04d420e6-0bc1-46d4-8c2a-ee884a1c400f